bitfinex/quotes_BTCUSD_20220205
["timestamp","ask_amount","ask_price","bid_price","bid_amount"]
[1644069991856,0.06107161,41448.0,41439.0,0.02413]
[1644069992054,0.08259219,41448.0,41442.0,0.06853504]
[1644069992255,0.08259219,41448.0,41442.0,0.09266304]
[1644069992256,0.08259153,41448.0,41442.0,0.09266304]
[1644069992857,0.08184118,41448.0,41442.0,0.09266304]
[1644069993059,0.08258894,41448.0,41442.0,0.024128]
[1644069993356,0.00085262,41443.0,41442.0,0.024128]
[1644069994157,0.00085262,41443.0,41438.0,0.61004044]
[1644069994358,0.00085262,41443.0,41439.0,0.332313]
[1644069995207,0.00085262,41443.0,41440.0,0.024128]
[1644069995408,0.00085262,41443.0,41441.0,0.108212]
[1644069996209,0.27081876,41447.0,41442.0,0.024128]
[1644069996609,0.24814876,41447.0,41442.0,0.024128]
[1644069996809,0.00075055,41448.0,41442.0,0.024128]
[1644069997010,0.00075055,41448.0,41440.0,0.0738456]
[1644069997208,0.00075055,41448.0,41438.0,0.47956531]
[1644069997414,0.30576077,41450.0,41438.0,0.47956531]
[1644069997608,0.058982,41449.0,41439.0,0.05]
[1644069997809,0.06107081,41448.0,41440.0,0.02413]
[1644069998009,0.00094884,41443.0,41440.0,0.02413]
[1644069998213,0.00094884,41443.0,41441.0,0.332313]
[1644069999260,0.00094884,41443.0,41441.0,0.501189]
[1644069999461,0.00094884,41443.0,41442.0,0.108192]
[1644070000458,0.00092051,41444.0,41442.0,0.108192]
[1644070000459,2.935e-05,41444.0,41442.0,0.108192]
[1644070000660,2.935e-05,41444.0,41442.0,0.156445]
[1644070000864,2.935e-05,41444.0,41443.0,0.332296]
[1644070002059,2.935e-05,41444.0,41441.0,0.00075069]
[1644070002261,2.935e-05,41444.0,41440.0,0.02413]
[1644070002505,2.935e-05,41444.0,41441.0,0.332313]
[1644070002705,2.935e-05,41444.0,41441.0,0.33306368]
[1644070003509,2.935e-05,41444.0,41441.0,0.332313]
[1644070003704,0.34206887,41448.0,41441.0,0.332313]
[1644070004005,0.34206887,41448.0,41442.0,0.024128]
[1644070004207,0.2817473,41448.0,41442.0,0.024128]
[1644070004606,0.2817473,41448.0,41442.0,0.26297197]
[1644070005007,0.02044958,41449.0,41442.0,0.26297197]
[1644070005205,0.02044958,41449.0,41443.0,0.00070801]
[1644070005406,0.02044958,41449.0,41443.0,0.04895801]
[1644070006012,0.02044958,41449.0,41443.0,0.04825]
[1644070006260,0.02044958,41449.0,41444.0,0.00065931]
[1644070006861,0.06097693,41450.0,41444.0,0.00065931]
[1644070007362,0.06031771,41450.0,41445.0,0.0006593]
[1644070007564,0.06097693,41450.0,41445.0,0.0006593]
[1644070008669,0.06097693,41450.0,41445.0,0.00065931]
[1644070009167,0.26808509,41450.0,41445.0,0.00065931]
[1644070009566,0.26742587,41450.0,41443.0,0.04825]
[1644070009767,0.06032,41449.0,41443.0,0.04825]
[1644070010015,0.28868613,41448.0,41445.0,0.00066885]
[1644070010415,0.28868613,41448.0,41445.0,0.02479585]
[1644070010815,0.28868613,41448.0,41443.0,0.04825]
[1644070011014,0.28868613,41448.0,41444.0,0.00066885]
[1644070011616,0.07975731,41450.0,41444.0,0.00066885]
[1644070011817,0.08009825,41450.0,41444.0,0.00066885]
[1644070012216,0.01900162,41449.0,41442.0,0.23884397]
[1644070012417,0.06032475,41448.0,41442.0,0.23884397]
[1644070012616,0.06032475,41448.0,41445.0,0.00066885]
[1644070012816,0.06066569,41448.0,41445.0,0.00066885]
[1644070013017,0.06032475,41448.0,41445.0,0.00066885]
[1644070013670,0.06032475,41448.0,41444.0,0.000667]
[1644070013974,0.27944792,41448.0,41444.0,0.000667]
[1644070014268,0.33977192,41448.0,41441.0,0.05]
[1644070014469,0.33943098,41448.0,41440.0,0.038923]
[1644070014668,0.00034094,41449.0,41440.0,0.038923]
[1644070014868,0.2074491,41450.0,41440.0,0.038923]
[1644070015071,0.06032318,41448.0,41441.0,0.05]
[1644070015269,0.06032318,41448.0,41442.0,0.024128]
[1644070015470,0.06066412,41448.0,41442.0,0.024128]
[1644070015668,0.06032318,41448.0,41442.0,0.024128]
[1644070016473,0.06066412,41448.0,41442.0,0.024128]
[1644070017270,0.06141469,41448.0,41442.0,0.02487869]
[1644070017515,0.33469529,41448.0,41442.0,0.02487869]
[1644070017710,0.06141469,41448.0,41442.0,0.02487869]
[1644070017912,0.00109151,41448.0,41442.0,0.02487869]
[1644070018110,0.00109151,41448.0,41442.0,0.024128]
[1644070018511,0.00109151,41448.0,41443.0,0.07739164]
[1644070018909,0.06141348,41448.0,41442.0,0.22459534]
[1644070019113,0.12173648,41448.0,41442.0,0.22459534]
[1644070019309,0.12098591,41448.0,41442.0,0.22384465]
[1644070019512,0.12098591,41448.0,41442.0,0.22459534]
[1644070019513,0.06141348,41448.0,41442.0,0.22459534]
[1644070020513,0.06066291,41448.0,41442.0,0.22384465]
[1644070020712,0.06141348,41448.0,41442.0,0.22459534]
[1644070020912,0.06141348,41448.0,41442.0,0.21959534]
[1644070021762,0.06066291,41448.0,41442.0,0.21884465]
[1644070021958,0.06137127,41448.0,41442.0,0.21955312]
[1644070022859,0.06066291,41448.0,41442.0,0.21884465]
[1644070023058,0.06137127,41448.0,41442.0,0.21955312]
[1644070023460,0.12169227,41448.0,41442.0,0.21955312]
[1644070023859,0.39163357,41448.0,41442.0,0.21955312]
[1644070024060,0.39092521,41448.0,41442.0,0.21884465]
[1644070024265,0.39163357,41448.0,41442.0,0.21955312]
[1644070025106,0.06137127,41448.0,41442.0,0.27987112]
[1644070025305,0.26776558,41450.0,41442.0,0.27916265]
[1644070025504,0.26776558,41450.0,41442.0,0.27987112]
[1644070025505,0.00034094,41449.0,41442.0,0.27987112]
[1644070025704,0.00070836,41448.0,41442.0,0.27987112]
[1644070026505,0.00034094,41449.0,41442.0,0.27916265]
[1644070026706,0.26776558,41450.0,41442.0,0.27987486]
[1644070026908,0.0610321,41448.0,41442.0,0.21955686]
[1644070027109,0.12135195,41448.0,41442.0,0.21955686]
[1644070027705,0.12063985,41448.0,41442.0,0.21884465]
[1644070027906,0.12135195,41448.0,41442.0,0.21955686]
[1644070028956,0.12063985,41448.0,41442.0,0.20608527]
[1644070029157,0.12135195,41448.0,41442.0,0.194754]
[1644070030159,0.12063985,41448.0,41442.0,0.21816979]
[1644070030361,0.12135158,41448.0,41442.0,0.21888163]
[1644070030563,0.03681258,41448.0,41442.0,0.21888163]
[1644070031363,0.09642085,41448.0,41442.0,0.21816979]
[1644070031563,0.09713258,41448.0,41442.0,0.21888163]
[1644070031764,0.00071173,41448.0,41442.0,0.21888163]
[1644070032413,0.00071173,41448.0,41442.0,0.19475363]
[1644070032610,0.12099034,41449.0,41442.0,0.19404179]
[1644070032910,0.00071173,41448.0,41442.0,0.19475363]
[1644070033309,0.06032224,41447.0,41442.0,0.19475363]
[1644070033709,0.06032224,41447.0,41442.0,0.19404179]
[1644070033908,0.06032224,41447.0,41442.0,0.19475367]
[1644070034713,0.00071177,41448.0,41442.0,0.19475367]
[1644070034910,0.2074491,41449.0,41442.0,0.19404179]
[1644070035107,0.2074491,41449.0,41442.0,0.19475367]
[1644070035308,0.00071177,41448.0,41442.0,0.19475367]
[1644070035510,0.00071177,41448.0,41443.0,0.26959809]
[1644070035710,0.00071177,41448.0,41443.0,0.27060961]
[1644070035910,0.06103232,41448.0,41443.0,0.27060961]
[1644070036156,0.06032055,41448.0,41443.0,0.27060961]
[1644070036359,0.06103233,41448.0,41443.0,0.27060961]
[1644070036558,0.12135633,41448.0,41443.0,0.27060961]
[1644070036958,0.06103233,41448.0,41443.0,0.27060961]
[1644070037363,0.06032055,41448.0,41443.0,0.27060961]
[1644070037559,0.06103232,41448.0,41443.0,0.27060961]
[1644070038560,0.00034094,41450.0,41443.0,0.27060961]
[1644070038765,0.20710816,41451.0,41443.0,0.34902161]
[1644070038766,0.00071177,41448.0,41443.0,0.34902161]
[1644070038960,0.00071177,41448.0,41445.0,0.108155]
[1644070039160,0.00071177,41448.0,41446.0,0.27505844]
[1644070039360,0.00071177,41448.0,41446.0,0.00101152]
[1644070039560,0.00071177,41448.0,41446.0,0.00067469]
[1644070039920,0.07655393,41440.0,41439.0,0.83239917]
[1644070040115,0.07655393,41440.0,41439.0,0.90827573]
[1644070040313,0.07655393,41440.0,41439.0,0.7743217]
[1644070040513,0.07655393,41440.0,41439.0,0.90327573]
[1644070040715,0.07655393,41440.0,41439.0,0.90282897]
[1644070040913,0.07655393,41440.0,41439.0,0.76887494]
[1644070041612,0.07655393,41440.0,41439.0,0.91887494]
[1644070041812,0.07655393,41440.0,41439.0,1.02695241]
[1644070043863,0.07655393,41440.0,41439.0,1.07505241]
[1644070044064,0.02029197,41445.0,41440.0,0.7]
[1644070044262,0.02029197,41445.0,41441.0,0.186606]
[1644070044462,0.00034094,41455.0,41442.0,0.332285]
[1644070044663,0.25836493,41454.0,41452.0,0.20194119]
[1644070044863,0.000341,41456.0,41452.0,0.2023898]
[1644070045065,0.000341,41457.0,41452.0,0.2023898]
[1644070045268,0.05,41458.0,41452.0,0.2023898]
[1644070045463,0.000341,41457.0,41453.0,0.060304]
[1644070045663,0.05,41458.0,41453.0,0.06075261]
[1644070045664,0.050341,41458.0,41453.0,0.06075261]
[1644070045864,0.000341,41457.0,41453.0,0.06075261]
[1644070046066,0.00075052,41457.0,41453.0,0.06075261]
[1644070046263,0.00109152,41457.0,41454.0,0.07339838]
[1644070046464,0.00075052,41457.0,41455.0,0.018092]
[1644070046664,0.00075052,41457.0,41455.0,0.07884161]
[1644070047512,0.20819967,41458.0,41455.0,0.07884161]
[1644070047713,0.20819967,41458.0,41455.0,0.01854061]
[1644070047714,0.05,41457.0,41455.0,0.01854061]
[1644070048110,0.00075051,41458.0,41455.0,0.01854061]
[1644070048313,0.000341,41459.0,41455.0,0.00044861]
[1644070048612,0.0007027,41458.0,41455.0,0.00044861]
[1644070049214,0.0007027,41458.0,41455.0,0.01853961]
[1644070049418,0.000341,41460.0,41455.0,0.01853961]
[1644070049717,0.000341,41462.0,41455.0,0.01853961]
[1644070049914,0.00070269,41459.0,41455.0,0.01853961]
[1644070050314,0.00104369,41459.0,41456.0,0.078386]
[1644070050519,0.00070269,41459.0,41456.0,0.07883461]
[1644070050714,0.05,41463.0,41460.0,0.23222615]
[1644070050715,0.000341,41462.0,41460.0,0.23222615]
[1644070051014,0.05034084,41463.0,41460.0,0.23267476]
[1644070051265,0.05,41463.0,41461.0,0.06029]
[1644070051463,0.05,41463.0,41461.0,0.06073861]
[1644070052063,0.05070586,41464.0,41461.0,0.06073861]
[1644070052264,0.0510467,41464.0,41461.0,0.06073861]
[1644070052464,0.05070586,41464.0,41461.0,0.06073861]
[1644070052864,0.05070586,41464.0,41461.0,0.33109312]
[1644070053167,0.05,41464.0,41461.0,0.06073861]
[1644070053563,0.32568617,41465.0,41461.0,0.05573861]
[1644070053763,0.05104668,41465.0,41461.0,0.05573861]
[1644070053963,0.05070585,41465.0,41461.0,0.05573861]
[1644070054368,0.05,41465.0,41461.0,0.05573861]
[1644070054567,0.05070547,41465.0,41461.0,0.05573861]
[1644070054767,0.21688288,41464.0,41461.0,0.05573861]
[1644070055012,0.48486184,41464.0,41461.0,0.00044861]
[1644070055214,0.48396229,41464.0,41461.0,0.00044861]
[1644070055410,0.05,41462.0,41461.0,0.00044859]
[1644070055610,0.6828727,41462.0,41461.0,0.00044859]
[1644070059857,0.3505597,41462.0,41461.0,0.00044859]
[1644070061460,0.21665059,41464.0,41461.0,0.00044859]
[1644070061660,0.21598333,41464.0,41461.0,0.00044859]
[1644070061859,0.21665059,41464.0,41461.0,0.00044859]
[1644070062911,0.21598333,41464.0,41461.0,0.00044859]
[1644070063909,0.38510455,41465.0,41461.0,0.00044859]
[1644070064110,0.38443741,41465.0,41461.0,0.00029939]
[1644070064409,0.38510436,41465.0,41461.0,0.00029939]
[1644070065110,0.23997997,41464.0,41461.0,0.00029939]
[1644070065716,0.32480708,41465.0,41461.0,0.00029939]
[1644070066561,0.32414014,41465.0,41461.0,0.00029939]
[1644070066761,0.32480709,41465.0,41461.0,0.00029939]
[1644070067761,0.31914014,41465.0,41461.0,0.00029939]
[1644070067961,0.32014869,41465.0,41461.0,0.00029939]
[1644070068964,0.31948172,41465.0,41461.0,0.00029939]
[1644070069164,0.32014869,41465.0,41461.0,0.00029939]
[1644070069367,0.32014869,41465.0,41460.0,0.060292]
[1644070069567,0.32014869,41465.0,41462.0,0.23203341]
[1644070069568,0.00100855,41465.0,41462.0,0.23203341]
[1644070069767,0.00066697,41465.0,41462.0,0.23203341]
[1644070070015,0.00066697,41465.0,41463.0,0.018088]
[1644070070415,0.01949664,41466.0,41463.0,0.018088]
[1644070070614,0.00066696,41466.0,41463.0,0.018088]
[1644070070815,0.00066696,41466.0,41464.0,0.07296085]
[1644070071418,0.00034158,41468.0,41464.0,0.07296085]
[1644070071615,0.00066695,41467.0,41464.0,0.10913085]
[1644070072016,0.00066695,41467.0,41465.0,0.060283]
[1644070072414,0.00066695,41467.0,41466.0,0.332313]
[1644070072814,0.00034158,41471.0,41465.0,0.060283]
[1644070073014,0.01371855,41472.0,41470.0,0.25415446]
[1644070074568,0.24672398,41474.0,41470.0,0.25415446]
[1644070074766,0.24672398,41474.0,41469.0,0.018085]
[1644070074767,0.05,41471.0,41469.0,0.018085]
[1644070074968,0.05,41471.0,41466.0,0.018087]
[1644070075170,0.05,41468.0,41466.0,0.018087]
[1644070075571,0.05,41468.0,41464.0,0.036171]
[1644070075971,0.23332728,41467.0,41464.0,0.036171]
[1644070076371,0.05,41468.0,41464.0,0.036171]
[1644070077419,0.27092045,41469.0,41464.0,0.036171]
[1644070077612,0.05,41468.0,41464.0,0.036171]
[1644070078212,0.27092045,41469.0,41464.0,0.036171]
[1644070078612,0.27092045,41469.0,41464.0,0.096458]
[1644070078811,0.32092045,41469.0,41464.0,0.096458]
[1644070079012,0.32092045,41469.0,41464.0,0.036171]
[1644070080014,0.27092045,41469.0,41464.0,0.036171]
[1644070080214,0.32092045,41469.0,41464.0,0.036171]
[1644070080414,0.27092045,41469.0,41464.0,0.036171]
[1644070080615,0.32092045,41469.0,41464.0,0.036171]
[1644070082362,0.38121242,41469.0,41464.0,0.036171]
[1644070082563,0.38121242,41469.0,41463.0,0.25546042]
[1644070082962,0.38155474,41469.0,41463.0,0.25546042]
[1644070083564,0.38155474,41469.0,41463.0,0.25501218]
[1644070083763,0.38155474,41469.0,41463.0,0.25574133]
[1644070084370,0.05,41466.0,41463.0,0.00072915]
[1644070084566,0.1205899,41467.0,41463.0,0.00072915]
[1644070084767,0.1205899,41467.0,41459.0,0.47982455]
[1644070085014,0.00034232,41467.0,41462.0,0.00075252]
[1644070085213,0.05034232,41468.0,41462.0,0.00075252]
[1644070085414,0.05034232,41468.0,41462.0,0.2028847]
[1644070085415,0.00034232,41467.0,41462.0,0.2028847]
[1644070085613,0.05034232,41468.0,41462.0,0.2028847]
[1644070085814,0.00034232,41467.0,41462.0,0.2028847]
[1644070086014,0.05,41468.0,41462.0,0.2028847]
[1644070086015,0.05034232,41468.0,41462.0,0.20213218]
[1644070086214,0.00034232,41467.0,41463.0,0.00075252]
[1644070086414,0.05034232,41468.0,41463.0,0.00075252]
[1644070086614,0.00034232,41467.0,41463.0,0.00075252]
[1644070087214,0.04879,41466.0,41463.0,0.018088]
[1644070087415,0.04879,41466.0,41463.0,0.01884052]
[1644070088416,0.04879,41466.0,41463.0,0.018088]
[1644070090063,0.04879,41466.0,41463.0,0.29737456]
[1644070090261,0.04879,41466.0,41464.0,0.332313]
[1644070091061,0.04879,41466.0,41463.0,0.01884052]
[1644070091863,0.04879,41466.0,41463.0,0.28905438]
[1644070092062,0.04879,41466.0,41463.0,0.28928715]
[1644070092430,0.00034232,41467.0,41463.0,0.28928715]
[1644070092431,0.00034232,41467.0,41465.0,0.07277545]
[1644070092621,0.00034232,41468.0,41466.0,0.30208678]
[1644070092825,0.02171905,41469.0,41467.0,0.00121]
[1644070093024,0.02137673,41469.0,41467.0,0.00121]
[1644070094626,0.02137673,41469.0,41466.0,0.078371]
[1644070094825,0.00028141,41470.0,41466.0,0.078371]
[1644070095226,0.00062373,41470.0,41466.0,0.078371]
[1644070095426,0.00028141,41470.0,41466.0,0.078371]
[1644070095626,0.00034232,41471.0,41466.0,0.078371]
[1644070095827,0.04913232,41472.0,41466.0,0.078371]
[1644070096027,0.0007529,41470.0,41466.0,0.078371]
[1644070096464,0.00109522,41470.0,41466.0,0.078371]
[1644070096665,0.0007529,41470.0,41466.0,0.078371]
[1644070096965,0.00034232,41472.0,41466.0,0.018085]
[1644070097266,0.00109522,41470.0,41468.0,0.078368]
[1644070097473,0.0007529,41470.0,41468.0,0.078368]
[1644070098065,0.00034232,41473.0,41468.0,0.078368]
[1644070098265,0.00109521,41471.0,41468.0,0.018085]
[1644070098465,0.00075289,41471.0,41468.0,0.018085]
[1644070099267,0.06028696,41472.0,41468.0,0.018085]
[1644070099467,0.00075289,41472.0,41463.0,0.41618781]
[1644070099666,0.00109521,41472.0,41463.0,0.08387481]
[1644070099921,0.00075289,41472.0,41463.0,0.08387481]
[1644070100516,0.00034232,41473.0,41463.0,0.41394345]
[1644070100716,0.0007529,41470.0,41468.0,0.018085]
[1644070101717,0.00034232,41473.0,41468.0,0.018085]
[1644070101918,0.00075289,41471.0,41468.0,0.078368]
[1644070102931,0.00034232,41473.0,41468.0,0.078368]
[1644070103119,0.00075289,41472.0,41468.0,0.078368]
[1644070103968,0.00075289,41472.0,41468.0,0.018085]
[1644070104169,0.00034232,41473.0,41468.0,0.018085]
[1644070104369,0.00075288,41472.0,41468.0,0.018085]
[1644070105271,0.00034232,41473.0,41468.0,0.018085]
[1644070105473,0.00075288,41472.0,41469.0,0.060281]
[1644070106469,0.00034232,41475.0,41469.0,0.060281]
[1644070106669,0.43162511,41476.0,41470.0,0.0632306]
[1644070106670,0.43196743,41476.0,41470.0,0.0632306]
[1644070106869,0.00075288,41473.0,41470.0,0.0632306]
[1644070107719,0.00034232,41475.0,41469.0,0.32149168]
[1644070107921,0.00075286,41474.0,41469.0,0.32149168]
[1644070108919,0.00034232,41475.0,41469.0,0.32149168]
[1644070109120,0.26773348,41476.0,41469.0,0.32149168]
[1644070109321,0.00075286,41474.0,41469.0,0.32149168]
[1644070109521,0.00075286,41474.0,41470.0,0.0897239]
[1644070109720,9.518e-05,41475.0,41470.0,0.0897239]
[1644070110122,0.26748634,41476.0,41470.0,0.0897239]
[1644070110323,0.06028289,41475.0,41469.0,0.018085]
[1644070110630,0.05,41471.0,41464.0,0.036172]
[1644070111025,9.518e-05,41473.0,41464.0,0.036172]
[1644070111265,0.26713285,41474.0,41464.0,0.036172]
[1644070111465,0.06029,41471.0,41465.0,0.21219842]
[1644070111665,0.26373649,41471.0,41465.0,0.21219842]
[1644070112064,9.518e-05,41473.0,41465.0,0.23028542]
[1644070112065,0.05,41472.0,41465.0,0.23028542]
[1644070112466,0.05,41472.0,41465.0,0.22981282]
[1644070112667,9.518e-05,41472.0,41466.0,0.00047259]
[1644070112865,0.08103234,41473.0,41466.0,0.00047259]
[1644070113465,0.08103234,41473.0,41467.0,0.060284]
[1644070113866,0.05,41470.0,41467.0,0.01883814]
[1644070115017,0.05,41470.0,41467.0,0.018085]
[1644070115420,9.518e-05,41471.0,41467.0,0.018085]
[1644070115618,0.12067138,41472.0,41467.0,0.018085]
[1644070116019,0.05,41469.0,41467.0,0.018085]
[1644070116220,0.05,41469.0,41467.0,0.01883814]
[1644070116920,9.518e-05,41472.0,41467.0,0.01883814]
[1644070117120,0.33103963,41473.0,41467.0,0.01883814]
[1644070117320,0.05,41469.0,41465.0,0.018088]
[1644070117519,0.05,41469.0,41467.0,0.00075314]
[1644070117718,0.25760029,41473.0,41467.0,0.05075314]
[1644070117920,0.00034327,41472.0,41467.0,0.05075314]
[1644070118120,0.25794356,41473.0,41467.0,0.05075314]
[1644070118520,0.12058314,41472.0,41467.0,0.05]
[1644070118769,0.12092641,41472.0,41468.0,0.00047296]
[1644070119571,0.07114804,41463.0,41427.0,0.91546877]
[1644070119871,0.07114804,41463.0,41461.0,0.332313]
[1644070120274,0.07114804,41463.0,41462.0,0.060291]
[1644070121072,0.07114804,41463.0,41462.0,0.392604]
[1644070130225,0.07114804,41463.0,41462.0,0.46547923]
[1644070130824,0.07114804,41463.0,41462.0,0.45889636]
[1644070131024,0.07114804,41463.0,41462.0,0.45710465]
[1644070131429,0.07114804,41463.0,41462.0,0.38422942]
[1644070132927,0.07114804,41463.0,41462.0,0.05191642]
[1644070145018,0.07114804,41463.0,41462.0,0.38422942]
[1644070146218,0.07114804,41463.0,41462.0,0.65383227]
[1644070146419,0.07114804,41463.0,41462.0,0.38422942]
[1644070152176,0.07114804,41463.0,41462.0,0.6599267]
[1644070152425,0.07114804,41463.0,41462.0,0.38422942]
[1644070156022,0.0710389,41463.0,41462.0,0.38422942]
[1644070166276,0.40925629,41463.0,41462.0,0.35721142]
[1644070166481,0.40925629,41463.0,41460.0,0.00042874]
[1644070166678,0.1210389,41463.0,41460.0,0.00042874]
[1644070166876,0.1210389,41463.0,41452.0,0.50612083]
[1644070167076,0.26034159,41457.0,41454.0,0.332313]
[1644070167437,0.26034159,41457.0,41451.0,0.060308]
[1644070167629,0.26034159,41457.0,41448.0,0.50671675]
[1644070167827,0.32065159,41457.0,41449.0,0.332313]
[1644070168026,0.32065159,41457.0,41448.0,0.120615]
[1644070168226,0.05,41453.0,41448.0,0.120615]
[1644070169126,0.05,41453.0,41452.0,0.00071715]
[1644070169326,0.32977815,41453.0,41452.0,0.00071715]
[1644070171174,0.20800331,41452.0,41448.0,0.00071718]
[1644070171375,0.05,41450.0,41448.0,0.00071718]
[1644070171974,0.05,41450.0,41446.0,0.00018867]
[1644070172174,0.27569765,41449.0,41445.0,0.4218731]
[1644070172374,0.27569765,41449.0,41445.0,0.06050467]
[1644070173176,0.05,41446.0,41445.0,0.39281767]
[1644070173378,0.32718845,41446.0,41444.0,0.00018867]
[1644070173577,0.27180732,41445.0,41443.0,0.00018867]
[1644070173776,0.27180732,41445.0,41442.0,0.00018867]
[1644070173976,0.05,41443.0,41441.0,0.00018867]
[1644070174176,0.05,41443.0,41440.0,0.062322]
[1644070174378,0.29030366,41448.0,41442.0,0.332313]
[1644070174577,0.05,41448.0,41442.0,0.120625]
[1644070174775,0.02051132,41446.0,41442.0,0.12081367]
[1644070175626,0.02051132,41446.0,41443.0,0.00071286]
[1644070175919,0.02051132,41446.0,41443.0,0.00090153]
[1644070176120,0.02051132,41446.0,41443.0,0.01296453]
[1644070176320,0.02051132,41446.0,41443.0,0.01225167]
[1644070176924,0.31357853,41448.0,41443.0,0.01225167]
[1644070177524,0.31357853,41448.0,41444.0,0.060316]
[1644070178025,0.31357853,41448.0,41444.0,0.06050467]
[1644070178869,0.31357853,41448.0,41444.0,0.06121928]
[1644070179872,0.31357853,41448.0,41444.0,0.06050467]
[1644070180069,0.31357853,41448.0,41444.0,0.06119516]
[1644070181075,0.31357853,41448.0,41444.0,0.00018867]
[1644070181273,0.31357853,41448.0,41444.0,0.00069034]
[1644070181470,0.31357853,41448.0,41444.0,0.00087901]
[1644070182272,0.31357853,41448.0,41444.0,0.00018867]
[1644070182520,0.31357853,41448.0,41444.0,0.00069034]
[1644070182721,0.31357853,41448.0,41444.0,0.00087901]
[1644070182920,0.05,41448.0,41444.0,0.00087901]
[1644070183529,0.05,41448.0,41444.0,0.00018867]
[1644070183722,0.05,41448.0,41444.0,0.00071446]
[1644070183921,0.05,41448.0,41444.0,0.00090313]
[1644070184122,0.05,41448.0,41444.0,0.02502813]
[1644070184321,0.05,41448.0,41445.0,0.060313]
[1644070184521,0.05,41448.0,41445.0,0.06050167]
[1644070190025,0.04447559,41448.0,41445.0,0.06050167]
[1644070190225,0.262943,41450.0,41445.0,0.06050167]
[1644070190427,0.04447559,41448.0,41445.0,0.06050167]
[1644070194575,0.06372116,41452.0,41445.0,0.07256367]
[1644070194775,0.01924557,41452.0,41450.0,0.00552441]
[1644070195373,0.03773983,41452.0,41450.0,0.00552441]
[1644070195573,0.01849426,41452.0,41451.0,0.219069]
[1644070195774,0.01849426,41452.0,41451.0,0.83691826]
[1644070196174,0.01849426,41452.0,41451.0,0.61784926]
[1644070197174,0.01849426,41452.0,41451.0,0.84291476]
[1644070197623,0.04447559,41462.0,41457.0,0.076581]
[1644070197824,0.04447559,41462.0,41458.0,0.012059]
[1644070198023,0.04447559,41462.0,41459.0,0.06029]
[1644070198224,0.0710389,41463.0,41460.0,0.00552441]
[1644070198823,0.0710389,41463.0,41461.0,0.32797153]
[1644070200425,0.0710389,41463.0,41462.0,0.060286]
[1644070202474,0.0710389,41463.0,41462.0,0.392599]
[1644070214322,0.07097017,41463.0,41462.0,0.392599]
[1644070215324,0.07097017,41463.0,41462.0,0.332313]
[1644070215622,0.11544576,41463.0,41462.0,0.332313]
[1644070215822,0.11544576,41463.0,41461.0,0.26768628]
[1644070216027,0.07097017,41463.0,41461.0,0.26768628]
[1644070216282,0.07097017,41463.0,41462.0,0.332313]
[1644070216476,0.07097017,41463.0,41461.0,0.26768628]
[1644070216676,0.07097017,41463.0,41462.0,0.332313]
[1644070218076,0.07097017,41463.0,41462.0,0.392597]
[1644070224379,0.07097017,41463.0,41462.0,0.373797]
[1644070227533,0.11544576,41463.0,41462.0,0.313513]
[1644070227735,0.11544576,41463.0,41461.0,0.22044692]
[1644070229734,0.11544576,41463.0,41460.0,0.06101854]
[1644070230733,0.11544576,41463.0,41458.0,0.27745365]
[1644070230933,0.11544576,41463.0,41459.0,0.33299055]
[1644070231177,0.27121625,41460.0,41459.0,0.33299055]
[1644070231379,0.31569184,41460.0,41459.0,0.00072355]
[1644070231779,0.36379184,41460.0,41459.0,0.00072355]
[1644070231979,0.36379184,41460.0,41449.0,0.132668]
[1644070232179,0.55616986,41460.0,41452.0,0.060305]
[1644070232580,0.04447559,41454.0,41450.0,0.00018867]
[1644070232779,0.04447559,41454.0,41451.0,0.332267]
[1644070233185,0.04447559,41454.0,41448.0,0.00018867]
[1644070233381,0.04447559,41449.0,41447.0,0.00282109]
[1644070233581,0.04447559,41449.0,41448.0,0.332267]
[1644070235127,0.04447559,41449.0,41446.0,0.00061506]
[1644070235328,0.04447559,41449.0,41447.0,0.012063]
[1644070235528,0.04447559,41449.0,41448.0,0.332267]
[1644070235929,0.04447559,41449.0,41447.0,0.00018867]
[1644070236129,0.04447559,41449.0,41446.0,0.00070661]
[1644070236829,0.04447559,41449.0,41446.0,0.00089528]
[1644070237131,0.04447559,41449.0,41446.0,0.00018867]
[1644070237329,0.04447559,41449.0,41445.0,0.00018867]
[1644070237530,0.04447559,41446.0,41445.0,0.33297362]
[1644070237729,0.04447559,41446.0,41445.0,0.33316229]
[1644070237930,0.04447559,41446.0,41445.0,0.33297362]
[1644070238333,0.04447559,41446.0,41445.0,0.332267]
[1644070238978,0.04447559,41446.0,41444.0,0.00018867]
[1644070239177,0.04447559,41446.0,41444.0,0.332267]
[1644070239779,0.04447559,41446.0,41444.0,0.392581]
[1644070240081,0.04447559,41449.0,41446.0,0.089398]
[1644070240484,0.04447559,41449.0,41446.0,0.08958667]
[1644070241081,0.04447559,41449.0,41447.0,0.060313]
[1644070241282,0.04447559,41449.0,41448.0,0.332232]
[1644070242288,0.04447559,41449.0,41446.0,0.00075221]
[1644070242289,0.04447559,41449.0,41447.0,0.00018867]
[1644070242528,0.04447559,41449.0,41446.0,0.00094088]
[1644070242728,0.04447559,41449.0,41446.0,0.00075221]
[1644070242925,0.04447559,41449.0,41446.0,0.00094088]
[1644070243128,0.04447559,41449.0,41444.0,0.012064]
[1644070243432,0.04447559,41445.0,41444.0,0.089392]
[1644070243630,0.22304995,41450.0,41444.0,0.089392]
[1644070244228,0.22304995,41450.0,41443.0,0.00018867]
[1644070244428,0.22304995,41450.0,41442.0,0.06050767]
[1644070244632,0.04447559,41445.0,41444.0,0.012064]
[1644070244928,0.04447559,41445.0,41444.0,0.344331]
[1644070245130,0.04447559,41445.0,41444.0,0.332267]
[1644070245934,0.060319,41449.0,41444.0,0.332267]
[1644070246177,0.04447559,41445.0,41444.0,0.332267]
[1644070247378,0.04440848,41445.0,41444.0,0.332267]
[1644070247580,0.03311599,41445.0,41444.0,0.332267]
[1644070247978,0.03311599,41445.0,41444.0,0.332266]
[1644070248183,0.03311599,41445.0,41443.0,0.00018867]
[1644070248184,0.03311599,41445.0,41443.0,0.08959467]
[1644070248378,0.03311599,41445.0,41443.0,0.089406]
[1644070251532,0.22304995,41450.0,41443.0,0.089406]
[1644070251733,0.03311599,41445.0,41443.0,0.07256967]
[1644070251934,0.03311599,41445.0,41444.0,0.332267]
[1644070252135,0.03311599,41449.0,41444.0,0.33301837]
[1644070252336,0.03311599,41449.0,41444.0,0.33320704]
[1644070253134,0.03311599,41449.0,41444.0,0.33245567]
[1644070253334,0.03311599,41449.0,41444.0,0.33320704]
[1644070253536,0.03311599,41449.0,41445.0,0.072377]
[1644070253782,0.03311599,41449.0,41446.0,0.332248]
[1644070253977,0.03311599,41449.0,41446.0,0.33243667]
[1644070254377,0.060311,41456.0,41446.0,0.33243667]
[1644070254578,0.03311599,41452.0,41448.0,0.060309]